{"text_format":"3","workbook":"xlsx","n_sheets":4,"sheets":["Instructions","Demographics","Assessment","Results"],"not_rendered":{"charts":1,"images":1},"read":"whole","date_system":"1900"}

{"sheet":"Instructions","index":0,"n_rows":26,"n_cols":1,"rows_kept":26,"merged":[[1,0,1,3],[2,0,6,9],[9,1,9,7],[10,1,10,7],[11,1,11,7],[12,1,12,7],[13,1,13,7],[14,1,14,7],[15,1,15,7],[16,1,16,7],[17,1,17,7],[18,1,18,7],[19,1,19,7],[20,1,20,7],[25,0,27,9]]}
["CLS - Standard Assessment"]
[]
["The Casey Life Skills (CLS) is a multiple-choice questionnaire that measures independent living skills in a number of functional areas for young people. The CLS standard form has 126 questions that assesses 9 functional areas, (1) daily living, (2) self-care, (3) relationships and communication, (4) housing, money management, and transportation, (5) work and study life, (6) career and education planning, (7) civic engagement, (8) navigating the child welfare system, and (9) looking forward. It can be used by youth ages 14-21 years. It can be completed by youth and supportive adults (e.g., caregivers, service providers, case workers, etc.) to understand the youth’s skills. \n\nThe Casey Life Skills Toolkit, which includes the full suite of CLS Assessments, Practitioners Guide and Resources to Inspire Guide, is hosted at: "]
[]
[]
[]
[]
["https://www.casey.org/casey-life-skills/"]
[]
["Step 1 Demographic Information"]
["Step 2 Assessment"]
["Step 3 Results"]
{"$rows_empty":13}
["Casey Family Programs owns all rights, titles, and interests including copyrights and other intellectual property rights in and to this assessment. Your use of this assessment is subject to the CLS Licensing Agreement. As detailed in the Agreement, you may not (i) use this assessment for any commercial purpose, (ii) modify it, or (iii) transfer or sublicense it for any purpose other than administering the assessment to youth and their families. "]

{"sheet":"Demographics","index":1,"n_rows":15,"n_cols":2,"rows_kept":15,"merged":[[2,2,2,5],[3,2,3,5],[4,2,4,5],[5,2,5,5],[6,2,6,5],[7,2,7,5],[8,2,8,5],[9,2,9,5],[10,2,10,5],[11,2,11,5],[12,2,12,5],[14,0,14,5]]}
["CLS - Standard Assessment"]
[]
["Youth Name","Travis Collins"]
["Birthdate (mm/dd/yyyy)"]
["Gender Identity","Male"]
["Sexual Orientation","Heterosexual"]
["Preferred Pronoun","He‚ Him‚ His"]
["Race","Biracial"]
["Latinx/Hispanic","Colombian"]
["Religious/ Spiritual Affiliation","Christian"]
["Primary Language","English"]
["Secondary Langauge","Spanish"]
["Do you have a documented disability?","No"]
[]
["Step 2 Assessment"]

{"sheet":"Assessment","index":2,"n_rows":315,"n_cols":7,"rows_kept":315,"merged":[[0,0,0,6],[1,0,1,6],[2,2,2,4],[4,0,21,0],[23,0,23,6],[24,1,24,6],[29,0,29,6],[32,0,49,0],[51,0,51,6],[60,0,60,6],[63,0,76,0],[78,0,78,6],[100,0,100,6],[103,0,122,0],[124,0,124,6],[135,0,135,6],[138,0,156,0],[158,0,158,6],[171,0,171,6],[174,0,182,0],[184,0,184,6],[217,0,217,6],[220,0,229,0],[231,0,231,6],[232,0,232,6],[260,0,260,6],[263,0,272,0],[274,0,274,6],[302,0,302,6],[305,0,311,0],[314,0,314,6]]}
["CLS - Standard Assessment"]
["Instructions: Next to each statement place a x in the column that most feels like you. Only select 1 answer per row. Caregivers and youth are encouraged to fill out this sheet seperately and compare results."]
[null,"I am a:","Select One"]
[null,{"$f":"IF(C3=\"Caregiver\",\"Are the following statements like the Youth\",\"Are the following statements like me?\")","v":"Are the following statements like me?"},"Yes","Mostly Yes","Some what","Mostly No","No"]
["Daily Living Skills","I know how to create, save, and print documents on a computer.",null,"x"]
[null,"I know how to open an email account and use it.","x"]
[null,"I know how to access information on the internet safely.","x"]
[null,"I can recognize phishing via emails, texts, and other social media platforms. ",null,"x"]
[null,"I know the risks of meeting someone in person that I met online. ",null,"x"]
[null,"I know the risk of sharing private information (e.g., pictures, credit card, address) with someone I have met online.","x"]
[null,"I think of ways pictures or messages may affect other people before I post them.",null,null,"x"]
[null,"If someone sent me a message online that made me feel upset or scared, I would know who to reach out to or what to do.",null,null,"x"]
[null,"When I shop, I make a list and compare prices.",{"$nulls":4},"x"]
[null,"I know how to make healthy meals with or without using a recipe.",null,null,"x"]
[null,"I know how to reheat leftover food using a microwave or stove safely.","x"]
[null,"I understand the importance of creating a healthy meal.",null,null,"x"]
[null,"I understand how to read food labels to see calories, serving size, fat, sugar, and salt.",{"$nulls":3},"x"]
[null,"I understand how to read food labels to see manufactured and expiration dates.",null,"x"]
[null,"I know how to use a washer, dryer and detergent to clean my clothes.",null,"x"]
[null,"I know how to keep my living space tidy and organized.",null,"x"]
[null,"I know the appropriate products to use when cleaning my space.",null,"x"]
[null,"I know how to use a fire extinguisher.",null,null,"x"]
[]
["Continue to Self Care Skills Below"]
[]
[]
[]
[]
[]
["Self Care Skills"]
[]
[null,{"$f":"IF(C3=\"Caregiver\",\"Are the following statements like the Youth\",\"Are the following statements like me?\")","v":"Are the following statements like me?"},"Yes","Mostly Yes","Some what","Mostly No","No"]
["Self Care Skills","I know how to practice personal hygiene (e.g., bathing, brushing, flossing).","x"]
[null,"I know how to take care of myself when I am on my menstrual cycle.",{"$nulls":4},"x"]
[null,"I know how to take care of minor cuts, burns, and flu-like symptoms.","x"]
[null,"I understand the importance of scheduling regular physical, dental and eye care appointments with my provider.",null,"x"]
[null,"I know how to make my medical and dental appointments. ",null,"x"]
[null,"I know when I should go to my primary provider, urgent care, or emergency room.",null,"x"]
[null,"I know how to access telehealth when I need it. ",{"$nulls":4},"x"]
[null,"I know how to understand if I am eligible for benefits, such as health insurance, Social Security, Medicaid, Temporary Assistance for Needy Families (TANF), Supplemental Nutrition Assistance program (SNAP), Women, Infants and Child program (WIC), Education and Training Vouchers (ETV), etc.",{"$nulls":4},"x"]
[null,"I know how to positively manage my mental health when I am having a difficult day.",null,"x"]
[null,"I know how to step away from situations if they are too stressful or cause me discomfort. ",null,"x"]
[null,"I understand when I am having a mental health crisis.",null,"x"]
[null,"I know how to access a mental health professional.",null,"x"]
[null,"I know how to practice safe sex (e.g., using condoms).","x"]
[null,"I know how to prevent getting pregnant or getting someone else pregnant. ","x"]
[null,"I know where to get reliable information about safe sex and pregnancy.","x"]
[null,"I know how to protect myself from sexually transmitted diseases (STDs).","x"]
[null,"I understand that if I am sexually active, I should be getting tested for sexually transmitted diseases (STDS). ","x"]
[null,"I know who to ask to get access to my family's medical history.",null,null,"x"]
[]
["Continue to Relationships and Communication Below"]
{"$rows_empty":8}
["Relationship and Communication"]
[]
[null,{"$f":"IF(C3=\"Caregiver\",\"Are the following statements like the Youth\",\"Are the following statements like me?\")","v":"Are the following statements like me?"},"Yes","Mostly Yes","Some what","Mostly No","No"]
["Relationship and Communication","I feel confident speaking up for myself when I need to.",null,null,"x"]
[null,"I think about my choices and the consequences that come with them.",null,null,"x"]
[null,"I can cope with my frustration, hurt and anger without breaking things or retaliating. ",null,null,"x"]
[null,"I know how to behave around friends, peers, and classmates.","x"]
[null,"I know how to behave at work and in other professional settings.","x"]
[null,"I know how to respect people with different beliefs, opinions, and cultures.","x"]
[null,"I am aware of my racial and ethnic identity. ","x"]
[null,"I feel comfortable exploring my gender identity and sexual orientation.",{"$nulls":3},"x"]
[null,"I have relationships that make me feel valued and worthwhile.","x"]
[null,"I know the importance of obtaining and giving consent in a relationship.","x"]
[null,"I know how to identify if my relationships are free from any emotional, physical, and mental abuse.","x"]
[null,"I have information about family members that I could possibly live with.","x"]
[null,"I am comfortable showing affection to people I care about.",null,null,"x"]
[null,"I am comfortable building new relationships.",null,"x"]
[]
["Continue to Housing, Money Management & Transportation Below"]
{"$rows_empty":21}
["Housing, Money Management & Transportation"]
[]
[null,{"$f":"IF(C3=\"Caregiver\",\"Are the following statements like the Youth\",\"Are the following statements like me?\")","v":"Are the following statements like me?"},"Yes","Mostly Yes","Some what","Mostly No","No"]
["Housing, Money Management & Transportation","I know how to create a daily living budget.",null,null,"x"]
[null,"I understand the importance of making payments for my credit card purchases.",{"$nulls":4},"x"]
[null,"I know the importance of having a good credit score.",null,null,"x"]
[null,"I know how to get my credit score.",{"$nulls":4},"x"]
[null,"I know how to manage my bank account.",{"$nulls":4},"x"]
[null,"I know the importance of saving money regularly from my paycheck.",{"$nulls":3},"x"]
[null,"I understand how to use online banking to keep track of my money.",{"$nulls":3},"x"]
[null,"I understand how to safely use online money transfer apps (e.g., PayPal, Venmo)",{"$nulls":4},"x"]
[null,"I know the risks of using check cashing or payday loan stores.",{"$nulls":4},"x"]
[null,"I know how to look for safe and affordable housing.",{"$nulls":4},"x"]
[null,"I know what things to look for before signing a lease to ensure everything is working and is a safe environment. ",{"$nulls":4},"x"]
[null,"I understand how to plan for moving costs such as deposits, rents, utilities, and furniture.",{"$nulls":4},"x"]
[null,"I know how to fill out an apartment rental application.",{"$nulls":4},"x"]
[null,"I know where to find resources to help with water, gas and electricity bills.",{"$nulls":4},"x"]
[null,"I understand the importance of having renters or homeowners' insurance.",{"$nulls":4},"x"]
[null,"I plan for bills and other expenses that I must pay for regularly each month (e.g., car and/or health insurance, cell phone, eating out, rent, video games.)",{"$nulls":4},"x"]
[null,"I understand that I need a valid driver’s license and insurance to drive a car.","x"]
[null,"I know where to go to obtain my driver’s license or State ID.","x"]
[null,"I understand that I need to budget for registration, repairs, insurance, and gas if I own a car.",{"$nulls":3},"x"]
[null,"I know how to use public transportation (or rideshare services such as Uber/LYFT) to get to where I need to go.",{"$nulls":3},"x"]
[]
["Continue to Work and Study Life Below"]
{"$rows_empty":10}
["Work and Study Life"]
[]
[null,{"$f":"IF(C3=\"Caregiver\",\"Are the following statements like the Youth\",\"Are the following statements like me?\")","v":"Are the following statements like me?"},"Yes","Mostly Yes","Some what","Mostly No","No"]
["Work and Study Life","I know how to develop a resume for a job that I am applying to.",{"$nulls":3},"x"]
[null,"I know how to fill out an online and a paper job application.",{"$nulls":3},"x"]
[null,"I know how to prepare and dress for a job interview.",null,null,"x"]
[null,"I know people who can help me find a job.",null,null,"x"]
[null,"I know what the information on my paystub or paycheck deposit means.",{"$nulls":4},"x"]
[null,"I know who to ask to get documents I need for work (e.g., social security card, birth certificate, state ID, or work permit).","x"]
[null,"I know how to fill out a W-4 payroll exemption form when I get a job.",{"$nulls":4},"x"]
[null,"I know what benefits are covered by my employer (e.g., social security, healthcare).",{"$nulls":4},"x"]
[null,"I know where I can get help to fill out my taxes. ",{"$nulls":4},"x"]
[null,"I know what workplace sexual harassment is.",{"$nulls":4},"x"]
[null,"I know what workplace discrimination is.",{"$nulls":3},"x"]
[null,"I know who to get help from regarding my school's counseling services. ",null,null,"x"]
[null,"I can take feedback and guidance at school and/or work to improve my work.",null,null,"x"]
[null,"I know how to prepare for course exams and presentations.",null,"x"]
[null,"I know where I can get tutoring or other help with schoolwork.",null,"x"]
[null,"I understand that I need to take careful steps to review my work before submitting it.",null,"x"]
[null,"I get my work done and turn it in on time.","x"]
[null,"I know how to use a planner or calendar notes or phone to plan out and keep track of important dates and assignments.",null,"x"]
[null,"I know my legal rights as a part-time or full-time employee.",{"$nulls":3},"x"]
[]
["Continue to Career and Education Planning Below"]
{"$rows_empty":12}
["Career and Education Planning"]
[]
[null,{"$f":"IF(C3=\"Caregiver\",\"Are the following statements like the Youth\",\"Are the following statements like me?\")","v":"Are the following statements like me?"},"Yes","Mostly Yes","Some what","Mostly No","No"]
["Career and Education Planning","I know where to find work-related internships.",{"$nulls":4},"x"]
[null,"I know how to use reliable online platforms to find information about job training opportunities.",{"$nulls":3},"x"]
[null,"I know how to use online resources that can help me with filling out a job application.",{"$nulls":3},"x"]
[null,"I understand the benefits of doing volunteer work.",{"$nulls":3},"x"]
[null,"I know the importance of having a mentor to guide me in a career that I would like.",null,null,"x"]
[null,"I know how to find an education mentor.",{"$nulls":3},"x"]
[null,"I am familiar with the FAFSA application.",{"$nulls":4},"x"]
[null,"I have talked about my education plans with an education advisor.",{"$nulls":4},"x"]
[null," know where to get support to understand my financial obligations for my education loan. ",{"$nulls":4},"x"]
[]
["Continue to Civic Engagement Below"]
{"$rows_empty":32}
["Civic Engagement"]
[]
[null,{"$f":"IF(C3=\"Caregiver\",\"Are the following statements like the Youth\",\"Are the following statements like me?\")","v":"Are the following statements like me?"},"Yes","Mostly Yes","Some what","Mostly No","No"]
["Civic Engagement","I belong to a group at school, church or community.",null,null,"x"]
[null,"I volunteer in my free time or for a school requirement.",{"$nulls":4},"x"]
[null,"I make decisions based on my social, political and or religious beliefs. (e.g., where I buy products, who I support).",{"$nulls":4},"x"]
[null,"I work with neighbors or other people to do something positive for the community.",{"$nulls":4},"x"]
[null,"I provide support to my neighbors and friends when they need it.",{"$nulls":3},"x"]
[null,"I actively participate in advocating for social and political issues that are important.",{"$nulls":4},"x"]
[null,"I know how to share my views on news and politics responsibly.",{"$nulls":4},"x"]
[null,"I have taken steps to express my opinion to a public official.",{"$nulls":4},"x"]
[null,"I am registered or know how to register to vote.",{"$nulls":4},"x"]
[null,"I know how to research information to improve my own understanding of a topic.",{"$nulls":4},"x"]
[]
["Continue to Navigating the Child Welfare System Below"]
{"$rows_empty":28}
["Navigating the Child Welfare System"]
[]
[null,{"$f":"IF(C3=\"Caregiver\",\"Are the following statements like the Youth\",\"Are the following statements like me?\")","v":"Are the following statements like me?"},"Yes","Mostly Yes","Some what","Mostly No","No"]
["Navigating the Child Welfare System","I know my permanency goal (e.g., adoption, guardianship, independence, and return to home)",null,"x"]
[null,"I know how and when I can see my child welfare or juvenile justice records.",{"$nulls":4},"x"]
[null,"I know how to contact the State Foster Care Ombudsperson/Inspector General.",{"$nulls":4},"x"]
[null,"I know that I have a right to a lawyer while in foster care.","x"]
[null,"I know how to get notified of my court hearings.",null,null,"x"]
[null,"I know how to participate in court and share my opinion with my case worker or probation officer.",null,"x"]
[null,"I understand the legal and professional terms used in court and by my social worker or probation officer. ",{"$nulls":4},"x"]
[null,"I have shared with a judge what my plans are after I have aged out of foster care.",{"$nulls":4},"x"]
[null,"I understand what a Court-appointed special advocate (CASA) or guardian ad litem (GAL)is.",{"$nulls":3},"x"]
[null,"I understand that I am eligible for extended foster care in my state after I am 18 years.",null,null,"x"]
[]
["Continue to Looking Forward Below"]
{"$rows_empty":27}
["Looking Forward"]
[]
[null,{"$f":"IF(C3=\"Caregiver\",\"Are the following statements like the Youth\",\"Are the following statements like me?\")","v":"Are the following statements like me?"},"Yes","Mostly Yes","Some what","Mostly No","No"]
["Looking Forward","I have a positive outlook for my future.",null,"x"]
[null,"I can see myself being successful.",null,"x"]
[null,"I would like to use my experience to mentor other youth with similar experiences.",null,null,"x"]
[null,"I believe I have a support system that will help me succeed.",null,null,"x"]
[null,"Most days, I feel confident about how my life will turn out.",null,null,"x"]
[null,"Most days, I feel proud of the way I am living my life.",null,null,"x"]
[null,"I am excited for the next phase of my life. ",null,null,"x"]
[]
[]
["Step 3 Results"]

{"sheet":"Results","index":3,"n_rows":12,"n_cols":3,"rows_kept":12}
["CLS - Standard Assessment"]
[]
[null,"Score","Mastery Score"]
["Daily Living Skills",{"$f":"IFERROR(SUM(COUNTA(Assessment!C5:C22)*5,COUNTA(Assessment!D5:D22)*4,COUNTA(Assessment!E5:E22)*3,COUNTA(Assessment!F5:F22)*2,COUNTA(Assessment!G5:G22)*1)/COUNTA(Assessment!C5:G22),\"\")","v":{"v":3.6666666666666665,"d":"3.67"}},{"$f":"COUNTA(Assessment!C5:C22)/SUM(COUNTA(Assessment!C5:C22),COUNTBLANK(Assessment!C5:C22))","v":{"v":0.2222222222222222,"d":"22%"}}]
["Self Care Skills",{"$f":"IFERROR(SUM(COUNTA(Assessment!C33:C50)*5,COUNTA(Assessment!D33:D50)*4,COUNTA(Assessment!E33:E50)*3,COUNTA(Assessment!F33:F50)*2,COUNTA(Assessment!G33:G50)*1)/COUNTA(Assessment!C33:G50),\"\")","v":{"v":3.8333333333333335,"d":"3.83"}},{"$f":"COUNTA(Assessment!C33:C50)/SUM(COUNTA(Assessment!C33:C50),COUNTBLANK(Assessment!C33:C50))","v":{"v":0.3888888888888889,"d":"39%"}}]
["Relationship and Communication",{"$f":"IFERROR(SUM(COUNTA(Assessment!C64:C77)*5,COUNTA(Assessment!D64:D77)*4,COUNTA(Assessment!E64:E77)*3,COUNTA(Assessment!F64:F77)*2,COUNTA(Assessment!G64:G77)*1)/COUNTA(Assessment!C64:G77),\"\")","v":{"v":4.142857142857143,"d":"4.14"}},{"$f":"COUNTA(Assessment!C64:C77)/SUM(COUNTA(Assessment!C64:C77),COUNTBLANK(Assessment!C64:C77))","v":{"v":0.5714285714285714,"d":"57%"}}]
["Housing, Money Management & Transportation",{"$f":"IFERROR(SUM(COUNTA(Assessment!C104:C123)*5,COUNTA(Assessment!D104:D123)*4,COUNTA(Assessment!E104:E123)*3,COUNTA(Assessment!F104:F123)*2,COUNTA(Assessment!G104:G123)*1)/COUNTA(Assessment!C104:G123),\"\")","v":{"v":1.8,"d":"1.80"}},{"$f":"COUNTA(Assessment!C104:C123)/SUM(COUNTA(Assessment!C104:C123),COUNTBLANK(Assessment!C104:C123))","v":{"v":0.1,"d":"10%"}}]
["Work and Study Life",{"$f":"IFERROR(SUM(COUNTA(Assessment!C139:C157)*5,COUNTA(Assessment!D139:D157)*4,COUNTA(Assessment!E139:E157)*3,COUNTA(Assessment!F139:F157)*2,COUNTA(Assessment!G139:G157)*1)/COUNTA(Assessment!C139:G157),\"\")","v":{"v":2.6842105263157894,"d":"2.68"}},{"$f":"COUNTA(Assessment!C139:C157)/SUM(COUNTA(Assessment!C139:C157),COUNTBLANK(Assessment!C139:C157))","v":{"v":0.10526315789473684,"d":"11%"}}]
["Career and Education Planning",{"$f":"IFERROR(SUM(COUNTA(Assessment!C175:C183)*5,COUNTA(Assessment!D175:D183)*4,COUNTA(Assessment!E175:E183)*3,COUNTA(Assessment!F175:F183)*2,COUNTA(Assessment!G175:G183)*1)/COUNTA(Assessment!C175:G183),\"\")","v":{"v":1.6666666666666667,"d":"1.67"}},{"$f":"COUNTA(Assessment!C175:C183)/SUM(COUNTA(Assessment!C175:C183),COUNTBLANK(Assessment!C175:C183))","v":{"v":0,"d":"0%"}}]
["Civic Engagement",{"$f":"IFERROR(SUM(COUNTA(Assessment!C221:C230)*5,COUNTA(Assessment!D221:D230)*4,COUNTA(Assessment!E221:E230)*3,COUNTA(Assessment!F221:F230)*2,COUNTA(Assessment!G221:G230)*1)/COUNTA(Assessment!C221:G230),\"\")","v":{"v":1.3,"d":"1.30"}},{"$f":"COUNTA(Assessment!C221:C230)/SUM(COUNTA(Assessment!C221:C230),COUNTBLANK(Assessment!C221:C230))","v":{"v":0,"d":"0%"}}]
["Navigating the Child Welsfare System",{"$f":"IFERROR(SUM(COUNTA(Assessment!C264:C273)*5,COUNTA(Assessment!D264:D273)*4,COUNTA(Assessment!E264:E273)*3,COUNTA(Assessment!F264:F273)*2,COUNTA(Assessment!G264:G273)*1)/COUNTA(Assessment!C264:G273),\"\")","v":{"v":2.5,"d":"2.50"}},{"$f":"COUNTA(Assessment!C264:C273)/SUM(COUNTA(Assessment!C264:C273),COUNTBLANK(Assessment!C264:C273))","v":{"v":0.1,"d":"10%"}}]
["Looking Forward",{"$f":"IFERROR(SUM(COUNTA(Assessment!C306:C312)*5,COUNTA(Assessment!D306:D312)*4,COUNTA(Assessment!E306:E312)*3,COUNTA(Assessment!F306:F312)*2,COUNTA(Assessment!G306:G312)*1)/COUNTA(Assessment!C306:G312),\"\")","v":{"v":3.2857142857142856,"d":"3.29"}},{"$f":"COUNTA(Assessment!C306:C312)/SUM(COUNTA(Assessment!C306:C312),COUNTBLANK(Assessment!C306:C312))","v":{"v":0,"d":"0%"}}]